fUSD/lending_fUSD_20260530
["ID","MTS","AMOUNT","RATE_DAILY","PERIOD"]
[423449590,1780126585000,-500.0,0.00037388,120]
[423449588,1780126585000,-500.0,0.00037388,120]
[423449587,1780126585000,-749.1379702,0.00037388,120]
[423449589,1780126585000,-800.0,0.00037388,120]
[423449599,1780126585000,-500.0,0.00037388,120]
[423449593,1780126585000,-500.0,0.00037388,120]
[423449601,1780126585000,-800.0,0.00037388,120]
[423449602,1780126585000,-523.5344632,0.00037388,120]
[423449617,1780126585000,-500.0,0.00037388,120]
[423449603,1780126585000,-500.0,0.00037388,120]
[423449616,1780126585000,-800.0,0.00037388,120]
[423449618,1780126585000,-800.0,0.00037388,120]
[423449615,1780126585000,-500.0,0.00037388,120]
[423449612,1780126585000,-800.0,0.00037388,120]
[423449613,1780126585000,-500.0,0.00037388,120]
[423449611,1780126585000,-500.0,0.00037388,120]
[423449614,1780126585000,-800.0,0.00037388,120]
[423449610,1780126585000,-800.0,0.00037388,120]
[423449608,1780126585000,-800.0,0.00037388,120]
[423449607,1780126585000,-500.0,0.00037388,120]
[423449605,1780126585000,-500.0,0.00037388,120]
[423449606,1780126585000,-800.0,0.00037388,120]
[423449604,1780126585000,-800.0,0.00037388,120]
[423449609,1780126585000,-500.0,0.00037388,120]
[423449627,1780126586000,-500.0,0.00037388,120]
[423449629,1780126586000,-800.0,0.00037388,120]
[423449630,1780126586000,-522.457037,0.00037388,120]
[423449631,1780126586000,-500.0,0.00037388,120]
[423449628,1780126586000,-1100.0,0.00037388,120]
[423449626,1780126586000,-500.0,0.00037388,120]
[423449625,1780126586000,-800.0,0.00037388,120]
[423449635,1780126586000,-500.0,0.00037388,120]
[423449623,1780126586000,-500.0,0.00037388,120]
[423449624,1780126586000,-227.4930204,0.00037388,120]
[423449621,1780126586000,-500.0,0.00037388,120]
[423449619,1780126586000,-500.0,0.00037388,120]
[423449620,1780126586000,-800.0,0.00037388,120]
[423449632,1780126586000,-1100.0,0.00037388,120]
[423449622,1780126586000,-800.0,0.00037388,120]
[423449634,1780126586000,-190.9207538,0.00037388,120]
[423449640,1780126586000,-800.0,0.00037388,120]
[423449633,1780126586000,-800.0,0.00037388,120]
[423449651,1780126586000,-1100.0,0.00037388,120]
[423449649,1780126586000,-1100.0,0.00037388,120]
[423449650,1780126586000,-1100.0,0.00037388,120]
[423449647,1780126586000,-1409.114776,0.00037388,120]
[423449648,1780126586000,-1100.0,0.00037388,120]
[423449644,1780126586000,-216.8722082,0.00037388,120]
[423449645,1780126586000,-1100.0,0.00037388,120]
[423449646,1780126586000,-190.4303728,0.00037388,120]
[423449643,1780126586000,-800.0,0.00037388,120]
[423449639,1780126586000,-1100.0,0.00037388,120]
[423449641,1780126586000,-750.9420073,0.00037388,120]
[423449637,1780126586000,-800.0,0.00037388,120]
[423449638,1780126586000,-500.0,0.00037388,120]
[423449636,1780126586000,-1100.0,0.00037388,120]
[423449642,1780126586000,-1100.0,0.00037388,120]
[423449665,1780126587000,-1100.0,0.00037388,120]
[423449659,1780126587000,-1100.0,0.00037388,120]
[423449663,1780126587000,-1100.0,0.00037388,120]
[423449662,1780126587000,-1100.0,0.00037388,120]
[423449661,1780126587000,-1100.0,0.00037388,120]
[423449660,1780126587000,-1100.0,0.00037388,120]
[423449657,1780126587000,-1100.0,0.00037388,120]
[423449669,1780126587000,-2174.9335051,0.00037388,120]
[423449656,1780126587000,-1100.0,0.00037388,120]
[423449654,1780126587000,-1100.0,0.00037388,120]
[423449655,1780126587000,-1100.0,0.00037388,120]
[423449653,1780126587000,-1100.0,0.00037388,120]
[423449652,1780126587000,-1100.0,0.00037388,120]
[423449664,1780126587000,-1100.0,0.00037388,120]
[423449658,1780126587000,-1100.0,0.00037388,120]
[423449666,1780126587000,-1100.0,0.00037388,120]
[423449671,1780126587000,-500.0,0.00037388,120]
[423449684,1780126587000,-1600.0,0.00037388,120]
[423449685,1780126587000,-500.0,0.00037388,120]
[423449667,1780126587000,-1100.0,0.00037388,120]
[423449683,1780126587000,-500.0,0.00037388,120]
[423449681,1780126587000,-500.0,0.00037388,120]
[423449682,1780126587000,-1600.0,0.00037388,120]
[423449680,1780126587000,-250.35,0.00037388,120]
[423449678,1780126587000,-1600.0,0.00037388,120]
[423449679,1780126587000,-1600.0,0.00037388,120]
[423449677,1780126587000,-1600.0,0.00037388,120]
[423449676,1780126587000,-1600.0,0.00037388,120]
[423449673,1780126587000,-1600.0,0.00037388,120]
[423449675,1780126587000,-1600.0,0.00037388,120]
[423449672,1780126587000,-1600.0,0.00037388,120]
[423449670,1780126587000,-234.375,0.00037388,120]
[423449668,1780126587000,-1100.0,0.00037388,120]
[423449674,1780126587000,-1600.0,0.00037388,120]
[423449695,1780126588000,-1600.0,0.00037388,120]
[423449698,1780126588000,-1600.0,0.00037388,120]
[423449699,1780126588000,-500.0,0.00037388,120]
[423449697,1780126588000,-500.0,0.00037388,120]
[423449694,1780126588000,-500.0,0.00037388,120]
[423449696,1780126588000,-265.625,0.00037388,120]
[423449688,1780126588000,-1600.0,0.00037388,120]
[423449692,1780126588000,-1600.0,0.00037388,120]
[423449691,1780126588000,-500.0,0.00037388,120]
[423449690,1780126588000,-1600.0,0.00037388,120]
[423449687,1780126588000,-500.0,0.00037388,120]
[423449689,1780126588000,-500.0,0.00037388,120]
[423449702,1780126588000,-1600.0,0.00037388,120]
[423449686,1780126588000,-1600.0,0.00037388,120]
[423449693,1780126588000,-693.4354644,0.00037388,120]
[423449700,1780126588000,-1600.0,0.00037388,120]
[423449708,1780126588000,-1600.0,0.00037388,120]
[423449701,1780126588000,-500.0,0.00037388,120]
[423449719,1780126588000,-500.0,0.00037388,120]
[423449718,1780126588000,-500.0,0.00037388,120]
[423449717,1780126588000,-500.0,0.00037388,120]
[423449715,1780126588000,-500.0,0.00037388,120]
[423449716,1780126588000,-500.0,0.00037388,120]
[423449714,1780126588000,-500.0,0.00037388,120]
[423449703,1780126588000,-500.0,0.00037388,120]
[423449713,1780126588000,-500.0,0.00037388,120]
[423449712,1780126588000,-160.2611008,0.00037388,120]
[423449707,1780126588000,-500.0,0.00037388,120]
[423449709,1780126588000,-500.0,0.00037388,120]
[423449705,1780126588000,-500.0,0.00037388,120]
[423449704,1780126588000,-1600.0,0.00037388,120]
[423449706,1780126588000,-1600.0,0.00037388,120]
[423449711,1780126588000,-500.0,0.00037388,120]
[423449710,1780126588000,-1600.0,0.00037388,120]
[423449729,1780126589000,-500.0,0.00037388,120]
[423449732,1780126589000,-500.0,0.00037388,120]
[423449733,1780126589000,-500.0,0.00037388,120]
[423449728,1780126589000,-500.0,0.00037388,120]
[423449731,1780126589000,-500.0,0.00037388,120]
[423449725,1780126589000,-500.0,0.00037388,120]
[423449730,1780126589000,-500.0,0.00037388,120]
[423449726,1780126589000,-500.0,0.00037388,120]
[423449724,1780126589000,-500.0,0.00037388,120]
[423449722,1780126589000,-251.25,0.00037388,120]
[423449723,1780126589000,-500.0,0.00037388,120]
[423449721,1780126589000,-500.0,0.00037388,120]
[423449720,1780126589000,-500.0,0.00037388,120]
[423449735,1780126589000,-542.8901591,0.00037388,120]
[423449727,1780126589000,-265.625,0.00037388,120]
[423449736,1780126589000,-500.0,0.00037388,120]
[423449734,1780126589000,-1600.0,0.00037388,120]
[423449740,1780126589000,-1600.0,0.00037388,120]
[423449737,1780126589000,-1600.0,0.00037388,120]
[423449752,1780126589000,-1550.0,0.000375,120]
[423449751,1780126589000,-283.53046121,0.000375,120]
[423449749,1780126589000,-206.79450401,0.00037456,120]
[423449748,1780126589000,-2000.0,0.00037452,30]
[423449746,1780126589000,-161.82,0.00037444,60]
[423449745,1780126589000,-150.0,0.00037412,120]
[423449750,1780126589000,-1449.44,0.00037479,120]
[423449743,1780126589000,-464.05,0.00037392,120]
[423449742,1780126589000,-2020.1685858,0.00037388,120]
[423449744,1780126589000,-276.83,0.00037392,120]
[423449741,1780126589000,-1600.0,0.00037388,120]
[423449739,1780126589000,-1600.0,0.00037388,120]
[423449738,1780126589000,-848.5069637,0.00037388,120]
[423449753,1780126589000,-2697.0,0.000375,30]
[423449747,1780126589000,-330.0,0.00037451,45]
[423449762,1780126590000,-161.82,0.00037644,60]
[423449760,1780126590000,-1210.957,0.000376,120]
[423449761,1780126590000,-1210.95,0.000376,120]
[423449759,1780126590000,-1210.957,0.000376,120]
[423449756,1780126590000,-500.0,0.00037534,120]
[423449757,1780126590000,-161.82,0.00037544,60]
[423449755,1780126590000,-250.0,0.000375,120]
[423449754,1780126590000,-600.0,0.000375,120]
[423449764,1780126590000,-150.0,0.0003767,120]
[423449758,1780126590000,-2252.6,0.00037583,30]
[423449763,1780126590000,-150.0,0.00037664,120]
[423449766,1780126590000,-1637.585317,0.000377,120]
[423449774,1780126590000,-186.41,0.00037793,60]
[423449767,1780126590000,-150.0,0.00037729,120]
[423449768,1780126590000,-150.0,0.00037736,120]
[423449770,1780126590000,-188.88,0.00037793,60]
[423449771,1780126590000,-188.88,0.00037793,60]
[423449769,1780126590000,-161.82474202,0.00037744,60]
[423449773,1780126590000,-186.41,0.00037793,60]
[423449772,1780126590000,-186.41,0.00037793,60]
[423449776,1780126590000,-150.0,0.00037828,120]
[423449775,1780126590000,-71287.208,0.00037803,30]
[423449765,1780126590000,-1047.48591529,0.00037684,30]
[423449787,1780126591000,-2000.0,0.00038,120]
[423449786,1780126591000,-2008.53,0.00038,120]
[423449790,1780126591000,-1000.0,0.00038,120]
[423449784,1780126591000,-1079.49872306,0.00038,120]
[423449788,1780126591000,-243.0,0.00038,120]
[423449785,1780126591000,-180.0,0.00038,120]
[423449779,1780126591000,-1422.6,0.000379,120]
[423449781,1780126591000,-1000.0,0.00038,120]
[423449782,1780126591000,-2000.0,0.00038,60]
[423449780,1780126591000,-2500.0,0.00038,39]
[423449778,1780126591000,-4696.8,0.000379,120]
[423449777,1780126591000,-2684.59,0.0003784,86]
[423449783,1780126591000,-153.0,0.00038,120]
[423449789,1780126591000,-260.31422289,0.00038,120]
[423449802,1780126591000,-2900.0,0.00038068,60]
[423449792,1780126591000,-1633.0,0.00038,30]
[423449791,1780126591000,-242.0,0.00038,30]
[423449804,1780126591000,-500.0,0.00038082,120]
[423449803,1780126591000,-2000.0,0.00038082,30]
[423449801,1780126591000,-206.79450401,0.00038065,120]
[423449799,1780126591000,-600.0,0.00038014,120]
[423449800,1780126591000,-176.19,0.00038032,120]
[423449805,1780126591000,-2987.24028526,0.000381,33]
[423449797,1780126591000,-9427.0,0.00038,120]
[423449796,1780126591000,-150.0,0.00038,120]
[423449795,1780126591000,-250.0,0.00038,120]
[423449794,1780126591000,-2000.0,0.00038,38]
[423449793,1780126591000,-3200.0,0.00038,30]
[423449798,1780126591000,-1000.0,0.00038,30]
[423449816,1780126592000,-252.64,0.000382,40]
[423449817,1780126592000,-1047.48591529,0.00038263,30]
[423449815,1780126592000,-700.0,0.000382,120]
[423449814,1780126592000,-150.0,0.00038139,120]
[423449813,1780126592000,-2980.2,0.00038125,30]
[423449811,1780126592000,-1800.0,0.000381,120]
[423449808,1780126592000,-1823.13,0.000381,120]
[423449810,1780126592000,-1213.81,0.000381,60]
[423449809,1780126592000,-1213.813,0.000381,60]
[423449806,1780126592000,-1823.134,0.000381,120]
[423449807,1780126592000,-1823.134,0.000381,120]
[423449818,1780126592000,-738.51,0.00038273,120]
[423449812,1780126592000,-347.30548639,0.000381,33]
[423449819,1780126592000,-385.0,0.00038329,120]
[423449835,1780126592000,-2255.5,0.00038329,120]
[423449820,1780126592000,-1290.0,0.00038329,120]
[423449821,1780126592000,-1290.0,0.00038329,120]
[423449833,1780126592000,-2369.5,0.00038329,120]
[423449834,1780126592000,-2255.5,0.00038329,120]
[423449832,1780126592000,-2369.5,0.00038329,120]
[423449831,1780126592000,-1270.0,0.00038329,120]
[423449828,1780126592000,-2188.5,0.00038329,120]
[423449830,1780126592000,-1270.0,0.00038329,120]
[423449827,1780126592000,-2188.5,0.00038329,120]
[423449826,1780126592000,-2252.0,0.00038329,120]
[423449825,1780126592000,-2243.0,0.00038329,120]
[423449824,1780126592000,-2243.0,0.00038329,120]
[423449822,1780126592000,-2256.0,0.00038329,120]
[423449823,1780126592000,-2256.0,0.00038329,120]
[423449829,1780126592000,-2296.0,0.00038329,120]
[423449844,1780126593000,-1585.0,0.00038329,120]
[423449849,1780126593000,-1906.0,0.00038329,120]
[423449847,1780126593000,-2286.5,0.00038329,120]
[423449845,1780126593000,-1585.0,0.00038329,120]
[423449846,1780126593000,-2286.5,0.00038329,120]
[423449843,1780126593000,-2188.5,0.00038329,120]
[423449837,1780126593000,-1352.5,0.00038329,120]
[423449841,1780126593000,-1810.5,0.00038329,120]
[423449838,1780126593000,-1753.0,0.00038329,120]
[423449839,1780126593000,-1753.0,0.00038329,120]
[423449840,1780126593000,-1810.5,0.00038329,120]
[423449836,1780126593000,-1352.5,0.00038329,120]
[423449850,1780126593000,-2147.0,0.00038329,120]
[423449842,1780126593000,-2188.5,0.00038329,120]
[423449848,1780126593000,-1906.0,0.00038329,120]
[423449855,1780126593000,-2010.0,0.00038329,120]
[423449852,1780126593000,-2045.0,0.00038329,120]
[423449867,1780126593000,-1747.28596638,0.00038356,120]
[423449865,1780126593000,-150.0,0.0003834,120]
[423449866,1780126593000,-847.00905813,0.00038356,60]
[423449864,1780126593000,-1655.0,0.00038329,120]
[423449851,1780126593000,-2147.0,0.00038329,120]
[423449861,1780126593000,-2225.0,0.00038329,120]
[423449863,1780126593000,-1655.0,0.00038329,120]
[423449862,1780126593000,-2225.0,0.00038329,120]
[423449859,1780126593000,-2377.0,0.00038329,120]
[423449857,1780126593000,-2406.0,0.00038329,120]
[423449858,1780126593000,-2406.0,0.00038329,120]
[423449856,1780126593000,-2010.0,0.00038329,120]
[423449854,1780126593000,-1629.5,0.00038329,120]
[423449853,1780126593000,-1629.5,0.00038329,120]
[423449860,1780126593000,-2377.0,0.00038329,120]
[423449878,1780126594000,-837.0,0.00038356,30]
[423449881,1780126594000,-837.0,0.00038356,30]
[423449880,1780126594000,-837.0,0.00038356,30]
[423449877,1780126594000,-837.0,0.00038356,30]
[423449876,1780126594000,-837.0,0.00038356,30]
[423449874,1780126594000,-837.0,0.00038356,30]
[423449882,1780126594000,-837.0,0.00038356,30]
[423449873,1780126594000,-837.0,0.00038356,30]
[423449871,1780126594000,-837.0,0.00038356,30]
[423449872,1780126594000,-837.0,0.00038356,30]
[423449870,1780126594000,-837.0,0.00038356,30]
[423449869,1780126594000,-837.0,0.00038356,30]
[423449868,1780126594000,-837.0,0.00038356,30]
[423449875,1780126594000,-837.0,0.00038356,30]
[423449883,1780126594000,-837.0,0.00038356,30]
[423449879,1780126594000,-837.0,0.00038356,30]
[423449885,1780126594000,-837.0,0.00038356,30]
[423449898,1780126594000,-500.0,0.00038356,120]
[423449897,1780126594000,-500.0,0.00038356,120]
[423449896,1780126594000,-500.0,0.00038356,120]
[423449894,1780126594000,-500.0,0.00038356,120]
[423449895,1780126594000,-500.0,0.00038356,120]
[423449893,1780126594000,-500.0,0.00038356,120]
[423449891,1780126594000,-844.39668663,0.00038356,30]
[423449884,1780126594000,-837.0,0.00038356,30]
[423449890,1780126594000,-837.0,0.00038356,30]
[423449889,1780126594000,-837.0,0.00038356,30]
[423449899,1780126594000,-500.0,0.00038356,120]
[423449888,1780126594000,-837.0,0.00038356,30]
[423449886,1780126594000,-837.0,0.00038356,30]
[423449887,1780126594000,-837.0,0.00038356,30]
[423449892,1780126594000,-3216.85176161,0.00038356,120]
[423449913,1780126595000,-500.0,0.00038356,120]
[423449911,1780126595000,-500.0,0.00038356,120]
[423449910,1780126595000,-500.0,0.00038356,120]
[423449909,1780126595000,-500.0,0.00038356,120]
[423449908,1780126595000,-500.0,0.00038356,120]
[423449907,1780126595000,-500.0,0.00038356,120]
[423449902,1780126595000,-500.0,0.00038356,120]
[423449906,1780126595000,-500.0,0.00038356,120]
[423449904,1780126595000,-500.0,0.00038356,120]
[423449903,1780126595000,-500.0,0.00038356,120]
[423449901,1780126595000,-500.0,0.00038356,120]
[423449900,1780126595000,-500.0,0.00038356,120]
[423449912,1780126595000,-500.0,0.00038356,120]
[423449905,1780126595000,-500.0,0.00038356,120]
[423449914,1780126595000,-500.0,0.00038356,120]
[423449916,1780126595000,-500.0,0.00038356,120]
[423449915,1780126595000,-500.0,0.00038356,120]
[423449929,1780126595000,-500.0,0.00038356,120]
[423449928,1780126595000,-1112.41,0.00038356,120]
[423449927,1780126595000,-1044.66,0.00038356,120]
[423449926,1780126595000,-872.11,0.00038356,120]
[423449924,1780126595000,-1139.8,0.00038356,120]
[423449925,1780126595000,-1054.74,0.00038356,120]
[423449930,1780126595000,-1000.0,0.00038356,120]
[423449921,1780126595000,-500.0,0.00038356,120]
[423449922,1780126595000,-600.0,0.00038356,120]
[423449920,1780126595000,-500.0,0.00038356,120]
[423449918,1780126595000,-500.0,0.00038356,120]
[423449919,1780126595000,-500.0,0.00038356,120]
[423449917,1780126595000,-500.0,0.00038356,120]
[423449923,1780126595000,-600.0,0.00038356,120]
[423449945,1780126596000,-2000.0,0.000385,38]
[423449942,1780126596000,-1000.0,0.000385,120]
[423449941,1780126596000,-2879.0,0.000385,120]
[423449939,1780126596000,-633.43834438,0.000385,30]
[423449940,1780126596000,-1560.0,0.000385,120]
[423449938,1780126596000,-1585.46676,0.000385,120]
[423449933,1780126596000,-2684.59,0.0003838,105]
[423449936,1780126596000,-243.0,0.000384,120]
[423449935,1780126596000,-1747.71,0.000384,120]
[423449934,1780126596000,-383.47,0.000384,120]
[423449932,1780126596000,-1576.2002048,0.0003836,60]
[423449931,1780126596000,-637.84,0.00038356,30]
[423449943,1780126596000,-500.0,0.000385,120]
[423449937,1780126596000,-150.0,0.00038449,120]
[423449944,1780126596000,-2000.0,0.000385,60]
[423449947,1780126596000,-268.56,0.000385,90]
[423449946,1780126596000,-250.0,0.000385,120]
[423449958,1780126596000,-399.76,0.00038571,30]
[423449960,1780126596000,-203.96,0.00038571,30]
[423449959,1780126596000,-389.41,0.00038571,30]
[423449957,1780126596000,-150.0,0.00038571,30]
[423449956,1780126596000,-172.09,0.00038571,30]
[423449955,1780126596000,-2000.0,0.00038571,30]
[423449961,1780126596000,-238.52,0.00038571,30]
[423449954,1780126596000,-835.79,0.00038571,30]
[423449952,1780126596000,-249.66,0.00038571,30]
[423449949,1780126596000,-459.476,0.00038507,51]
[423449951,1780126596000,-2000.0,0.00038571,30]
[423449950,1780126596000,-222.26487827,0.00038567,120]
[423449948,1780126596000,-6033.823,0.00038507,51]
[423449953,1780126596000,-1481.72,0.00038571,30]
[423449971,1780126597000,-500.0,0.00038611,30]
[423449973,1780126597000,-500.0,0.00038611,30]
[423449972,1780126597000,-500.0,0.00038611,30]
[423449968,1780126597000,-152.24,0.00038609,30]
[423449970,1780126597000,-500.0,0.00038611,30]
[423449969,1780126597000,-500.0,0.00038611,30]
[423449966,1780126597000,-205.36,0.00038571,30]
[423449965,1780126597000,-676.49,0.00038571,30]
[423449964,1780126597000,-299.07,0.00038571,30]
[423449962,1780126597000,-1247.35,0.00038571,30]
[423449963,1780126597000,-299.07,0.00038571,30]
[423449974,1780126597000,-500.0,0.00038611,30]
[423449967,1780126597000,-153.0,0.000386,120]
[423449976,1780126597000,-500.0,0.00038611,30]
[423449975,1780126597000,-500.0,0.00038611,30]
[423449990,1780126597000,-459.91,0.00038611,30]
[423449977,1780126597000,-500.0,0.00038611,30]
[423449992,1780126597000,-500.0,0.0003863,120]
[423449991,1780126597000,-500.0,0.00038614,30]
[423449989,1780126597000,-500.0,0.00038611,30]
[423449987,1780126597000,-500.0,0.00038611,30]
[423449986,1780126597000,-500.0,0.00038611,30]
[423449984,1780126597000,-500.0,0.00038611,30]
[423449988,1780126597000,-500.0,0.00038611,30]
[423449983,1780126597000,-500.0,0.00038611,30]
[423449981,1780126597000,-500.0,0.00038611,30]
[423449982,1780126597000,-500.0,0.00038611,30]
[423449980,1780126597000,-500.0,0.00038611,30]
[423449979,1780126597000,-500.0,0.00038611,30]
[423449978,1780126597000,-500.0,0.00038611,30]
[423449985,1780126597000,-500.0,0.00038611,30]
[423450003,1780126598000,-150.0,0.00038632,60]
[423450005,1780126598000,-150.0,0.00038632,60]
[423450006,1780126598000,-150.0,0.00038632,60]
[423450004,1780126598000,-150.0,0.00038632,60]
[423450002,1780126598000,-150.0,0.00038632,60]
[423450001,1780126598000,-150.0,0.00038632,60]
[423450007,1780126598000,-150.0,0.00038632,60]
[423450000,1780126598000,-150.0,0.00038632,60]
[423449998,1780126598000,-150.0,0.00038632,60]
[423449996,1780126598000,-150.0,0.00038632,60]
[423449997,1780126598000,-150.0,0.00038632,60]
[423449995,1780126598000,-150.0,0.00038632,60]
[423449993,1780126598000,-150.0,0.00038632,60]
[423449999,1780126598000,-150.0,0.00038632,60]
[423450008,1780126598000,-150.0,0.00038632,60]
[423449994,1780126598000,-150.0,0.00038632,60]
[423450011,1780126598000,-150.0,0.00038632,60]
[423450024,1780126598000,-150.0,0.00038632,60]
[423450023,1780126598000,-150.0,0.00038632,60]
[423450021,1780126598000,-150.0,0.00038632,60]
[423450022,1780126598000,-150.0,0.00038632,60]
[423450018,1780126598000,-150.0,0.00038632,60]
[423450020,1780126598000,-150.0,0.00038632,60]
[423450019,1780126598000,-150.0,0.00038632,60]
[423450009,1780126598000,-150.0,0.00038632,60]
[423450017,1780126598000,-150.0,0.00038632,60]
[423450016,1780126598000,-150.0,0.00038632,60]
[423450014,1780126598000,-150.0,0.00038632,60]
[423450012,1780126598000,-150.0,0.00038632,60]
[423450013,1780126598000,-150.0,0.00038632,60]
[423450010,1780126598000,-237.0,0.00038632,60]
[423450015,1780126598000,-150.0,0.00038632,60]
[423450038,1780126599000,-150.0,0.00038632,60]
[423450036,1780126599000,-150.0,0.00038632,60]
[423450034,1780126599000,-150.0,0.00038632,60]
[423450035,1780126599000,-150.0,0.00038632,60]
[423450033,1780126599000,-150.0,0.00038632,60]
[423450032,1780126599000,-150.0,0.00038632,60]
[423450029,1780126599000,-150.0,0.00038632,60]
[423450030,1780126599000,-150.0,0.00038632,60]
[423450028,1780126599000,-150.0,0.00038632,60]
[423450027,1780126599000,-150.0,0.00038632,60]
[423450026,1780126599000,-150.0,0.00038632,60]
[423450025,1780126599000,-150.0,0.00038632,60]
[423450037,1780126599000,-150.0,0.00038632,60]
[423450031,1780126599000,-150.0,0.00038632,60]
[423450039,1780126599000,-150.0,0.00038632,60]
[423450040,1780126599000,-150.0,0.00038632,60]
[423450041,1780126599000,-150.0,0.00038632,60]
[423450053,1780126599000,-150.0,0.00038632,60]
[423450054,1780126599000,-150.0,0.00038632,60]
[423450052,1780126599000,-150.0,0.00038632,60]
[423450051,1780126599000,-150.0,0.00038632,60]
[423450050,1780126599000,-150.0,0.00038632,60]
[423450049,1780126599000,-150.0,0.00038632,60]
[423450055,1780126599000,-150.0,0.00038632,60]
[423450048,1780126599000,-150.0,0.00038632,60]
[423450045,1780126599000,-150.0,0.00038632,60]
[423450046,1780126599000,-150.0,0.00038632,60]
[423450043,1780126599000,-150.0,0.00038632,60]
[423450044,1780126599000,-150.0,0.00038632,60]
[423450042,1780126599000,-150.0,0.00038632,60]
[423450047,1780126599000,-150.0,0.00038632,60]
[423450070,1780126600000,-5108.6574,0.0003864,30]
[423450068,1780126600000,-150.0,0.00038632,60]
[423450066,1780126600000,-150.0,0.00038632,60]
[423450067,1780126600000,-150.0,0.00038632,60]
[423450065,1780126600000,-150.0,0.00038632,60]
[423450064,1780126600000,-150.0,0.00038632,60]
[423450061,1780126600000,-150.0,0.00038632,60]
[423450060,1780126600000,-150.0,0.00038632,60]
[423450062,1780126600000,-150.0,0.00038632,60]
[423450058,1780126600000,-150.0,0.00038632,60]
[423450059,1780126600000,-150.0,0.00038632,60]
[423450056,1780126600000,-150.0,0.00038632,60]
[423450069,1780126600000,-205.0,0.00038632,60]
[423450063,1780126600000,-150.0,0.00038632,60]
[423450071,1780126600000,-330.0,0.00038647,53]
[423450057,1780126600000,-150.0,0.00038632,60]
[423450073,1780126600000,-1000.0,0.00038657,120]
[423450072,1780126600000,-1000.0,0.00038657,120]
[423450085,1780126600000,-1000.0,0.00038657,120]
[423450086,1780126600000,-1000.0,0.00038657,120]
[423450083,1780126600000,-1000.0,0.00038657,120]
[423450084,1780126600000,-1000.0,0.00038657,120]
[423450081,1780126600000,-1000.0,0.00038657,120]
[423450082,1780126600000,-1000.0,0.00038657,120]
[423450087,1780126600000,-1000.0,0.00038657,120]
[423450078,1780126600000,-1000.0,0.00038657,120]
[423450079,1780126600000,-1000.0,0.00038657,120]
[423450075,1780126600000,-1000.0,0.00038657,120]
[423450077,1780126600000,-1000.0,0.00038657,120]
[423450076,1780126600000,-1000.0,0.00038657,120]
[423450074,1780126600000,-1000.0,0.00038657,120]
[423450080,1780126600000,-1000.0,0.00038657,120]
[423450101,1780126601000,-1000.0,0.00038657,120]
[423450099,1780126601000,-1000.0,0.00038657,120]
[423450097,1780126601000,-1000.0,0.00038657,120]
[423450098,1780126601000,-1000.0,0.00038657,120]
[423450095,1780126601000,-1000.0,0.00038657,120]
[423450096,1780126601000,-1000.0,0.00038657,120]
[423450092,1780126601000,-1000.0,0.00038657,120]